[Event "January 9 Late 2024"]
[Site "https://www.chess.com"]
[Date "2024.01.09"]
[Round "4"]
[White "Bonin, Jay"]
[Black "Grycel, Kamil"]
[Result "1-0"]
[Board "200"]
[TimeControl "180+1"]
[WhiteFideId "2000644"]
[BlackFideId "1115499"]
[WhiteElo "2312"]
[BlackElo "2534"]
[WhiteTeam "USA"]
[BlackTeam "POL"]
[WhiteClock "0:00:43"]
[BlackClock "0:00:00"]

1. d4 {[%clk 0:02:59]}  d6 {[%clk 0:03:00]} 2. e4 {[%clk 0:02:57]}  Nf6 {[%clk 0:02:59]} 3. Nc3 {[%clk 0:02:55]}  c6 {[%clk 0:03:00]} 4. a4 {[%clk 0:02:53]}  Qc7 {[%clk 0:02:59]} 5. h3 {[%clk 0:02:52]}  Nbd7 {[%clk 0:02:58]} 6. g3 {[%clk 0:02:50]}  e5 {[%clk 0:02:58]} 7. Nge2 {[%clk 0:02:49]}  Be7 {[%clk 0:02:57]} 8. Bg2 {[%clk 0:02:48]}  O-O {[%clk 0:02:57]} 9. O-O {[%clk 0:02:47]}  b6 {[%clk 0:02:56]} 10. Be3 {[%clk 0:02:44]}  Bb7 {[%clk 0:02:52]} 11. g4 {[%clk 0:02:36]}  h6 {[%clk 0:02:32]} 12. Ng3 {[%clk 0:02:34]}  Nh7 {[%clk 0:02:32]} 13. f4 {[%clk 0:02:29]}  exd4 {[%clk 0:02:27]} 14. Bxd4 {[%clk 0:02:27]}  Bf6 {[%clk 0:02:17]} 15. Nf5 {[%clk 0:02:26]}  Rad8 {[%clk 0:02:10]} 16. h4 {[%clk 0:02:17]}  c5 {[%clk 0:02:06]} 17. Bxf6 {[%clk 0:02:11]}  Ndxf6 {[%clk 0:02:07]} 18. g5 {[%clk 0:02:07]}  Ne8 {[%clk 0:01:20]} 19. gxh6 {[%clk 0:01:59]}  g6 {[%clk 0:01:20]} 20. Ne3 {[%clk 0:01:57]}  Qe7 {[%clk 0:01:09]} 21. Qe1 {[%clk 0:01:52]}  Nef6 {[%clk 0:01:05]} 22. f5 {[%clk 0:01:43]}  Qe5 {[%clk 0:00:53]} 23. fxg6 {[%clk 0:01:38]}  fxg6 {[%clk 0:00:54]} 24. Qe2 {[%clk 0:01:28]}  Nxe4 {[%clk 0:00:35]} 25. Nxe4 {[%clk 0:01:27]}  Bxe4 {[%clk 0:00:35]} 26. Ng4 {[%clk 0:01:26]}  Qd4+ {[%clk 0:00:30]} 27. Kh2 {[%clk 0:01:19]}  Bxg2 {[%clk 0:00:25]} 28. Qxg2 {[%clk 0:01:18]}  Qxb2 {[%clk 0:00:19]} 29. Qd5+ {[%clk 0:01:10]}  Kh8 {[%clk 0:00:19]} 30. Ra2 {[%clk 0:01:09]}  Qc3 {[%clk 0:00:16]} 31. Rxf8+ {[%clk 0:00:58]}  Rxf8 {[%clk 0:00:17]} 32. Qxd6 {[%clk 0:00:57]}  Re8 {[%clk 0:00:08]} 33. Qd3 {[%clk 0:00:52]}  Qe1 {[%clk 0:00:06]} 34. c4 {[%clk 0:00:45]}  Qe6 {[%clk 0:00:00]} 35. Qc3+ {[%clk 0:00:43]} 1-0

[Event "January 9 Late 2024"]
[Site "https://www.chess.com"]
[Date "2024.01.09"]
[Round "4"]
[White "Skaric, Djuro"]
[Black "Gomes, Luiz Alexandre de Souza"]
[Result "0-1"]
[Board "202"]
[TimeControl "180+1"]
[WhiteFideId "934569"]
[BlackFideId "2102790"]
[WhiteElo "2301"]
[BlackElo "2434"]
[WhiteTeam "SRB"]
[BlackTeam "BRA"]
[WhiteClock "0:01:18"]
[BlackClock "0:00:44"]

1. g3 {[%clk 0:03:00]}  c6 {[%clk 0:02:57]} 2. Bg2 {[%clk 0:03:01]}  d5 {[%clk 0:02:57]} 3. d3 {[%clk 0:03:02]}  Nf6 {[%clk 0:02:58]} 4. Nf3 {[%clk 0:03:03]}  g6 {[%clk 0:02:58]} 5. O-O {[%clk 0:03:04]}  Bg7 {[%clk 0:02:58]} 6. h3 {[%clk 0:03:04]}  O-O {[%clk 0:02:59]} 7. Nc3 {[%clk 0:03:05]}  Nbd7 {[%clk 0:02:57]} 8. e4 {[%clk 0:03:05]}  e6 {[%clk 0:02:57]} 9. Nd2 {[%clk 0:03:05]}  dxe4 {[%clk 0:02:56]} 10. dxe4 {[%clk 0:03:05]}  Nc5 {[%clk 0:02:56]} 11. Nb3 {[%clk 0:03:04]}  Nxb3 {[%clk 0:02:55]} 12. axb3 {[%clk 0:03:04]}  a6 {[%clk 0:02:56]} 13. Be3 {[%clk 0:03:04]}  e5 {[%clk 0:02:53]} 14. f4 {[%clk 0:03:04]}  exf4 {[%clk 0:02:53]} 15. gxf4 {[%clk 0:03:04]}  Nh5 {[%clk 0:02:49]} 16. Qf3 {[%clk 0:03:03]}  Qh4 {[%clk 0:02:39]} 17. Rad1 {[%clk 0:02:57]}  Be6 {[%clk 0:02:31]} 18. f5 {[%clk 0:02:56]}  gxf5 {[%clk 0:02:29]} 19. exf5 {[%clk 0:02:56]}  Bc8 {[%clk 0:02:15]} 20. Qg4 {[%clk 0:02:56]}  Qxg4 {[%clk 0:02:14]} 21. hxg4 {[%clk 0:02:56]}  Nf6 {[%clk 0:02:15]} 22. g5 {[%clk 0:02:52]}  Ng4 {[%clk 0:02:16]} 23. Bc5 {[%clk 0:02:50]}  Re8 {[%clk 0:02:14]} 24. f6 {[%clk 0:02:50]}  Bf8 {[%clk 0:02:14]} 25. Bb6 {[%clk 0:02:44]}  Be6 {[%clk 0:01:56]} 26. Rf4 {[%clk 0:02:42]}  h6 {[%clk 0:01:44]} 27. Bf3 {[%clk 0:02:38]}  h5 {[%clk 0:01:31]} 28. Kg2 {[%clk 0:02:27]}  a5 {[%clk 0:01:24]} 29. Kg3 {[%clk 0:02:26]}  Ra6 {[%clk 0:01:24]} 30. Bg1 {[%clk 0:02:22]}  Bb4 {[%clk 0:01:22]} 31. Kh4 {[%clk 0:02:22]}  Ne5 {[%clk 0:01:17]} 32. Bxh5 {[%clk 0:02:20]}  Raa8 {[%clk 0:01:01]} 33. Na4 {[%clk 0:02:17]}  Rad8 {[%clk 0:01:00]} 34. Rfd4 {[%clk 0:02:17]}  Rxd4+ {[%clk 0:01:00]} 35. Rxd4 {[%clk 0:02:17]}  Bf5 {[%clk 0:00:57]} 36. c3 {[%clk 0:02:12]}  Bf8 {[%clk 0:00:57]} 37. Bd1 {[%clk 0:02:09]}  Ng6+ {[%clk 0:00:50]} 38. Kg3 {[%clk 0:02:06]}  b5 {[%clk 0:00:50]} 39. Nb6 {[%clk 0:02:02]}  Bc5 {[%clk 0:00:50]} 40. Bh5 {[%clk 0:01:32]}  Bxb6 {[%clk 0:00:48]} 41. Bxg6 {[%clk 0:01:23]}  Bxg6 {[%clk 0:00:46]} 42. Rd1 {[%clk 0:01:22]}  Bxg1 {[%clk 0:00:45]} 43. Rxg1 {[%clk 0:01:21]}  Re2 {[%clk 0:00:43]} 44. Rg2 {[%clk 0:01:20]}  Rxg2+ {[%clk 0:00:43]} 45. Kxg2 {[%clk 0:01:20]}  Bc2 {[%clk 0:00:43]} 46. b4 {[%clk 0:01:19]}  axb4 {[%clk 0:00:43]} 47. cxb4 {[%clk 0:01:20]}  Kh7 {[%clk 0:00:44]} 48. Kf3 {[%clk 0:01:20]}  Kg6 {[%clk 0:00:44]} 49. Kf4 {[%clk 0:01:21]}  Bd1 {[%clk 0:00:43]} 50. Ke5 {[%clk 0:01:20]}  Kxg5 {[%clk 0:00:43]} 51. Kd6 {[%clk 0:01:21]}  Bf3 {[%clk 0:00:43]} 52. Ke7 {[%clk 0:01:18]}  Kg6 {[%clk 0:00:44]} 0-1

[Event "January 9 Late 2024"]
[Site "https://www.chess.com"]
[Date "2024.01.09"]
[Round "4"]
[White "Argandona Riveiro, Inigo"]
[Black "Curtis, John"]
[Result "0-1"]
[Board "204"]
[TimeControl "180+1"]
[WhiteFideId "2212072"]
[BlackFideId "3200256"]
[WhiteElo "2403"]
[BlackElo "2112"]
[WhiteTeam "ESP"]
[BlackTeam "AUS"]
[WhiteClock "0:01:10"]
[BlackClock "0:01:13"]

1. Nf3 {[%clk 0:02:54]}  d5 {[%clk 0:02:59]} 2. c4 {[%clk 0:02:54]}  c6 {[%clk 0:02:58]} 3. d4 {[%clk 0:02:53]}  Nf6 {[%clk 0:02:57]} 4. e3 {[%clk 0:02:54]}  g6 {[%clk 0:02:57]} 5. Bd3 {[%clk 0:02:53]}  Bg7 {[%clk 0:02:57]} 6. O-O {[%clk 0:02:53]}  O-O {[%clk 0:02:57]} 7. h3 {[%clk 0:02:53]}  Bf5 {[%clk 0:02:52]} 8. b3 {[%clk 0:02:50]}  Bxd3 {[%clk 0:02:52]} 9. Qxd3 {[%clk 0:02:50]}  Ne4 {[%clk 0:02:51]} 10. Nbd2 {[%clk 0:02:50]}  Nxd2 {[%clk 0:02:51]} 11. Nxd2 {[%clk 0:02:48]}  c5 {[%clk 0:02:44]} 12. Bb2 {[%clk 0:02:47]}  Nc6 {[%clk 0:02:38]} 13. Rad1 {[%clk 0:02:44]}  cxd4 {[%clk 0:02:38]} 14. cxd5 {[%clk 0:02:40]}  Qxd5 {[%clk 0:02:33]} 15. Nf3 {[%clk 0:02:40]}  e5 {[%clk 0:02:32]} 16. exd4 {[%clk 0:02:37]}  e4 {[%clk 0:02:32]} 17. Qc4 {[%clk 0:02:27]}  Qxc4 {[%clk 0:02:30]} 18. bxc4 {[%clk 0:02:28]}  exf3 {[%clk 0:02:30]} 19. Ba3 {[%clk 0:02:22]}  fxg2 {[%clk 0:02:27]} 20. Kxg2 {[%clk 0:02:20]}  Bxd4 {[%clk 0:02:21]} 21. Bxf8 {[%clk 0:02:18]}  Kxf8 {[%clk 0:02:21]} 22. Rd3 {[%clk 0:02:18]}  b6 {[%clk 0:02:16]} 23. Rfd1 {[%clk 0:02:18]}  Bc5 {[%clk 0:02:10]} 24. Rd7 {[%clk 0:02:16]}  Ne5 {[%clk 0:02:10]} 25. Rd8+ {[%clk 0:02:11]}  Rxd8 {[%clk 0:02:08]} 26. Rxd8+ {[%clk 0:02:12]}  Ke7 {[%clk 0:02:08]} 27. Ra8 {[%clk 0:02:08]}  a5 {[%clk 0:02:08]} 28. f4 {[%clk 0:02:08]}  Nxc4 {[%clk 0:02:07]} 29. Kf3 {[%clk 0:02:08]}  h5 {[%clk 0:02:03]} 30. f5 {[%clk 0:02:07]}  Kf6 {[%clk 0:01:53]} 31. fxg6 {[%clk 0:02:06]}  fxg6 {[%clk 0:01:50]} 32. Ke4 {[%clk 0:02:07]}  Nd2+ {[%clk 0:01:45]} 33. Kd5 {[%clk 0:02:06]}  Kg5 {[%clk 0:01:44]} 34. Rd8 {[%clk 0:01:56]}  Nb1 {[%clk 0:01:41]} 35. Kc4 {[%clk 0:01:54]}  Na3+ {[%clk 0:01:39]} 36. Kb3 {[%clk 0:01:53]}  Kh4 {[%clk 0:01:38]} 37. Rd3 {[%clk 0:01:50]}  g5 {[%clk 0:01:38]} 38. Ka4 {[%clk 0:01:47]}  g4 {[%clk 0:01:37]} 39. hxg4 {[%clk 0:01:48]}  hxg4 {[%clk 0:01:37]} 40. Rd8 {[%clk 0:01:32]}  g3 {[%clk 0:01:35]} 41. Rh8+ {[%clk 0:01:32]}  Kg4 {[%clk 0:01:35]} 42. Rg8+ {[%clk 0:01:33]}  Kf3 {[%clk 0:01:36]} 43. Rg6 {[%clk 0:01:27]}  g2 {[%clk 0:01:36]} 44. Rf6+ {[%clk 0:01:27]}  Ke2 {[%clk 0:01:35]} 45. Re6+ {[%clk 0:01:28]}  Kf1 {[%clk 0:01:35]} 46. Rf6+ {[%clk 0:01:27]}  Bf2 {[%clk 0:01:35]} 47. Kxa3 {[%clk 0:01:17]}  g1=Q {[%clk 0:01:29]} 48. Rf3 {[%clk 0:01:17]}  Qg7 {[%clk 0:01:22]} 49. Rb3 {[%clk 0:01:16]}  Bc5+ {[%clk 0:01:21]} 50. Ka4 {[%clk 0:01:16]}  Qd7+ {[%clk 0:01:19]} 51. Rb5 {[%clk 0:01:14]}  Ke2 {[%clk 0:01:15]} 52. a3 {[%clk 0:01:10]}  Kd3 {[%clk 0:01:13]} 0-1

[Event "January 9 Late 2024"]
[Site "https://www.chess.com"]
[Date "2024.01.09"]
[Round "4"]
[White "Panico, Nick"]
[Black "Stachanczyk, Jacek"]
[Result "1/2-1/2"]
[Board "205"]
[TimeControl "180+1"]
[WhiteFideId "2026724"]
[BlackFideId "1116657"]
[WhiteElo "2040"]
[BlackElo "2398"]
[WhiteTeam "USA"]
[BlackTeam "POL"]
[WhiteClock "0:00:51"]
[BlackClock "0:00:50"]

1. d4 {[%clk 0:02:55]}  d5 {[%clk 0:03:00]} 2. Bf4 {[%clk 0:02:55]}  Nf6 {[%clk 0:02:59]} 3. e3 {[%clk 0:02:56]}  c5 {[%clk 0:02:59]} 4. c3 {[%clk 0:02:56]}  Nc6 {[%clk 0:03:00]} 5. Nd2 {[%clk 0:02:56]}  cxd4 {[%clk 0:02:59]} 6. exd4 {[%clk 0:02:55]}  Bf5 {[%clk 0:02:59]} 7. Qb3 {[%clk 0:02:54]}  Qc8 {[%clk 0:02:57]} 8. Ngf3 {[%clk 0:02:53]}  e6 {[%clk 0:02:57]} 9. h3 {[%clk 0:02:52]}  h6 {[%clk 0:02:54]} 10. Bb5 {[%clk 0:02:52]}  Be7 {[%clk 0:02:54]} 11. Ne5 {[%clk 0:02:49]}  O-O {[%clk 0:02:53]} 12. O-O {[%clk 0:02:44]}  Nxe5 {[%clk 0:02:53]} 13. Bxe5 {[%clk 0:02:44]}  Ne4 {[%clk 0:02:52]} 14. Nxe4 {[%clk 0:02:40]}  Bxe4 {[%clk 0:02:53]} 15. Rac1 {[%clk 0:02:36]}  a6 {[%clk 0:02:52]} 16. Be2 {[%clk 0:02:35]}  Qd7 {[%clk 0:02:42]} 17. a4 {[%clk 0:02:31]}  Rfc8 {[%clk 0:02:38]} 18. Rfd1 {[%clk 0:02:28]}  Bg5 {[%clk 0:02:35]} 19. Ra1 {[%clk 0:02:22]}  Rc6 {[%clk 0:02:30]} 20. Re1 {[%clk 0:02:04]}  Rac8 {[%clk 0:02:25]} 21. Qd1 {[%clk 0:02:01]}  Qd8 {[%clk 0:02:07]} 22. Bd3 {[%clk 0:01:59]}  Bxd3 {[%clk 0:02:05]} 23. Qxd3 {[%clk 0:01:59]}  Qb6 {[%clk 0:01:59]} 24. Qg3 {[%clk 0:01:50]}  f6 {[%clk 0:01:52]} 25. f4 {[%clk 0:01:47]}  fxe5 {[%clk 0:01:51]} 26. fxg5 {[%clk 0:01:47]}  exd4 {[%clk 0:01:47]} 27. gxh6 {[%clk 0:01:46]}  dxc3+ {[%clk 0:01:46]} 28. Kh1 {[%clk 0:01:46]}  R8c7 {[%clk 0:01:46]} 29. bxc3 {[%clk 0:01:39]}  Rxc3 {[%clk 0:01:41]} 30. h7+ {[%clk 0:01:24]}  Kxh7 {[%clk 0:01:30]} 31. Qg4 {[%clk 0:01:25]}  Qf2 {[%clk 0:01:13]} 32. Rf1 {[%clk 0:01:21]}  Qg3 {[%clk 0:01:13]} 33. Qxe6 {[%clk 0:01:16]}  R7c6 {[%clk 0:01:08]} 34. Qxd5 {[%clk 0:01:13]}  Rg6 {[%clk 0:01:05]} 35. Qe4 {[%clk 0:01:08]}  Qxh3+ {[%clk 0:01:01]} 36. Kg1 {[%clk 0:01:04]}  Rg3 {[%clk 0:00:58]} 37. Rf2 {[%clk 0:00:58]}  Qg4 {[%clk 0:00:52]} 38. Qc2 {[%clk 0:00:54]}  Rxg2+ {[%clk 0:00:49]} 39. Rxg2 {[%clk 0:00:54]}  Qd4+ {[%clk 0:00:49]} 40. Kh2 {[%clk 0:00:50]}  Qh4+ {[%clk 0:00:49]} 41. Kg1 {[%clk 0:00:50]}  Qd4+ {[%clk 0:00:49]} 42. Kh2 {[%clk 0:00:50]}  Qh4+ {[%clk 0:00:49]} 43. Kg1 {[%clk 0:00:51]}  Qd4+ {[%clk 0:00:50]} 1/2-1/2

[Event "January 9 Late 2024"]
[Site "https://www.chess.com"]
[Date "2024.01.09"]
[Round "4"]
[White "Kappeler, Kaspar"]
[Black "Rohan, Ahuja"]
[Result "0-1"]
[Board "206"]
[TimeControl "180+1"]
[WhiteFideId "1309072"]
[BlackFideId "5090598"]
[WhiteElo "2256"]
[BlackElo "2716"]
[WhiteTeam "SUI"]
[BlackTeam "IND"]
[WhiteClock "0:00:13"]
[BlackClock "0:01:54"]

1. c4 {[%clk 0:03:00]}  g6 {[%clk 0:02:59]} 2. Nc3 {[%clk 0:03:00]}  c5 {[%clk 0:02:59]} 3. Nf3 {[%clk 0:02:59]}  Bg7 {[%clk 0:03:00]} 4. g3 {[%clk 0:03:00]}  Nc6 {[%clk 0:03:00]} 5. Bg2 {[%clk 0:02:59]}  d6 {[%clk 0:03:01]} 6. h4 {[%clk 0:02:54]}  h5 {[%clk 0:03:00]} 7. e3 {[%clk 0:02:51]}  Nh6 {[%clk 0:03:00]} 8. d4 {[%clk 0:02:39]}  Bg4 {[%clk 0:03:00]} 9. dxc5 {[%clk 0:02:32]}  dxc5 {[%clk 0:03:01]} 10. Qxd8+ {[%clk 0:02:31]}  Rxd8 {[%clk 0:03:02]} 11. O-O {[%clk 0:02:15]}  Bxc3 {[%clk 0:03:02]} 12. bxc3 {[%clk 0:02:14]}  b6 {[%clk 0:02:48]} 13. a4 {[%clk 0:01:55]}  f6 {[%clk 0:02:32]} 14. e4 {[%clk 0:01:52]}  Nf7 {[%clk 0:02:26]} 15. Re1 {[%clk 0:01:33]}  Nfe5 {[%clk 0:02:20]} 16. Nd2 {[%clk 0:01:31]}  Nd3 {[%clk 0:02:18]} 17. f3 {[%clk 0:00:55]}  Nxe1 {[%clk 0:02:15]} 18. fxg4 {[%clk 0:00:55]}  hxg4 {[%clk 0:02:05]} 19. e5 {[%clk 0:00:45]}  Nxg2 {[%clk 0:02:04]} 20. Kxg2 {[%clk 0:00:39]}  Nxe5 {[%clk 0:02:04]} 21. a5 {[%clk 0:00:37]}  Kf7 {[%clk 0:02:02]} 22. axb6 {[%clk 0:00:37]}  axb6 {[%clk 0:02:03]} 23. Ne4 {[%clk 0:00:30]}  Rd1 {[%clk 0:01:59]} 24. Nf2 {[%clk 0:00:24]}  Re1 {[%clk 0:01:57]} 25. Rb1 {[%clk 0:00:18]}  f5 {[%clk 0:01:54]} 26. Kh2 {[%clk 0:00:12]}  Nf3+ {[%clk 0:01:54]} 27. Kg2 {[%clk 0:00:13]}  Rg1# {[%clk 0:01:54]} 0-1

[Event "January 9 Late 2024"]
[Site "https://www.chess.com"]
[Date "2024.01.09"]
[Round "4"]
[White "Wu, Derek"]
[Black "Rodriguez Dominguez, Melissa"]
[Result "1-0"]
[Board "208"]
[TimeControl "180+1"]
[WhiteFideId "30914558"]
[BlackFideId "3517560"]
[WhiteElo "2661"]
[BlackElo "2240"]
[WhiteTeam "USA"]
[BlackTeam "CUB"]
[WhiteClock "0:01:23"]
[BlackClock "0:00:28"]

1. e4 {[%clk 0:03:00]}  c5 {[%clk 0:02:59]} 2. Nf3 {[%clk 0:03:00]}  e6 {[%clk 0:02:58]} 3. d4 {[%clk 0:02:59]}  cxd4 {[%clk 0:02:59]} 4. Nxd4 {[%clk 0:02:59]}  Nc6 {[%clk 0:02:59]} 5. Nc3 {[%clk 0:02:59]}  Qc7 {[%clk 0:03:00]} 6. Be3 {[%clk 0:02:59]}  a6 {[%clk 0:02:59]} 7. Qf3 {[%clk 0:02:56]}  Nf6 {[%clk 0:02:58]} 8. O-O-O {[%clk 0:02:55]}  Rb8 {[%clk 0:02:58]} 9. Nxc6 {[%clk 0:02:48]}  bxc6 {[%clk 0:02:55]} 10. e5 {[%clk 0:02:48]}  Nd5 {[%clk 0:02:50]} 11. Bd4 {[%clk 0:02:45]}  c5 {[%clk 0:02:34]} 12. Nxd5 {[%clk 0:02:44]}  exd5 {[%clk 0:02:32]} 13. Be3 {[%clk 0:02:35]}  Qxe5 {[%clk 0:02:28]} 14. c3 {[%clk 0:02:28]}  Qe4 {[%clk 0:01:41]} 15. Qg3 {[%clk 0:02:09]}  d6 {[%clk 0:01:32]} 16. Bxc5 {[%clk 0:02:07]}  Bf5 {[%clk 0:01:29]} 17. Bd3 {[%clk 0:02:06]}  Qa4 {[%clk 0:01:17]} 18. Rhe1+ {[%clk 0:02:05]}  Kd8 {[%clk 0:01:13]} 19. Bxf5 {[%clk 0:02:02]}  Qxa2 {[%clk 0:01:12]} 20. Ba3 {[%clk 0:01:56]}  g6 {[%clk 0:00:58]} 21. Qh4+ {[%clk 0:01:55]}  Kc7 {[%clk 0:00:55]} 22. Re7+ {[%clk 0:01:55]}  Bxe7 {[%clk 0:00:47]} 23. Qxe7+ {[%clk 0:01:56]}  Kb6 {[%clk 0:00:46]} 24. Qxd6+ {[%clk 0:01:54]}  Ka7 {[%clk 0:00:45]} 25. Rxd5 {[%clk 0:01:26]}  gxf5 {[%clk 0:00:39]} 26. Qc5+ {[%clk 0:01:24]}  Ka8 {[%clk 0:00:38]} 27. Qc6+ {[%clk 0:01:22]}  Rb7 {[%clk 0:00:38]} 28. Qxa6+ {[%clk 0:01:22]}  Ra7 {[%clk 0:00:33]} 29. Qc6+ {[%clk 0:01:22]}  Rb7 {[%clk 0:00:32]} 30. Ra5+ {[%clk 0:01:22]}  Kb8 {[%clk 0:00:28]} 31. Bd6+ {[%clk 0:01:23]} 1-0

[Event "January 9 Late 2024"]
[Site "https://www.chess.com"]
[Date "2024.01.09"]
[Round "4"]
[White "Benedetti, Julio"]
[Black "Garcia Correa, Jose Ricardo"]
[Result "1-0"]
[Board "211"]
[TimeControl "180+1"]
[WhiteFideId "172545"]
[BlackFideId "5101832"]
[WhiteElo "2496"]
[BlackElo "2216"]
[WhiteTeam "ARG"]
[BlackTeam "MEX"]
[WhiteClock "0:00:28"]
[BlackClock "0:00:29"]

1. e4 {[%clk 0:03:00]}  e5 {[%clk 0:02:55]} 2. Nf3 {[%clk 0:03:00]}  Nc6 {[%clk 0:02:54]} 3. Bc4 {[%clk 0:03:01]}  Bc5 {[%clk 0:02:53]} 4. d3 {[%clk 0:03:01]}  d6 {[%clk 0:02:53]} 5. c3 {[%clk 0:03:02]}  Qf6 {[%clk 0:02:52]} 6. Bb3 {[%clk 0:03:02]}  Nge7 {[%clk 0:02:52]} 7. Nbd2 {[%clk 0:03:03]}  h6 {[%clk 0:02:52]} 8. Nf1 {[%clk 0:03:04]}  O-O {[%clk 0:02:48]} 9. Ng3 {[%clk 0:03:04]}  Ng6 {[%clk 0:02:45]} 10. Nh5 {[%clk 0:03:02]}  Qe7 {[%clk 0:02:44]} 11. Be3 {[%clk 0:03:02]}  Bg4 {[%clk 0:02:42]} 12. Ng3 {[%clk 0:03:01]}  Nf4 {[%clk 0:02:40]} 13. Bxf4 {[%clk 0:02:59]}  exf4 {[%clk 0:02:40]} 14. Ne2 {[%clk 0:02:59]}  g5 {[%clk 0:02:39]} 15. Qd2 {[%clk 0:02:55]}  a5 {[%clk 0:02:34]} 16. h4 {[%clk 0:02:52]}  a4 {[%clk 0:02:31]} 17. Bc2 {[%clk 0:02:50]}  Bxf3 {[%clk 0:02:32]} 18. gxf3 {[%clk 0:02:50]}  Ne5 {[%clk 0:02:32]} 19. Ng1 {[%clk 0:02:48]}  Bb6 {[%clk 0:02:28]} 20. d4 {[%clk 0:02:48]}  Ng6 {[%clk 0:02:28]} 21. hxg5 {[%clk 0:02:48]}  hxg5 {[%clk 0:02:29]} 22. O-O-O {[%clk 0:02:45]}  Kg7 {[%clk 0:02:28]} 23. Nh3 {[%clk 0:02:42]}  Rh8 {[%clk 0:02:28]} 24. Rdg1 {[%clk 0:02:43]}  f6 {[%clk 0:02:27]} 25. Qd3 {[%clk 0:02:37]}  Qf7 {[%clk 0:02:18]} 26. Kb1 {[%clk 0:02:25]}  a3 {[%clk 0:02:18]} 27. Bb3 {[%clk 0:02:24]}  Qe7 {[%clk 0:02:13]} 28. bxa3 {[%clk 0:02:20]}  c5 {[%clk 0:02:06]} 29. a4 {[%clk 0:02:17]}  cxd4 {[%clk 0:01:59]} 30. cxd4 {[%clk 0:02:16]}  d5 {[%clk 0:01:55]} 31. exd5 {[%clk 0:02:14]}  Qb4 {[%clk 0:01:55]} 32. Nxg5 {[%clk 0:01:10]}  fxg5 {[%clk 0:01:48]} 33. Rxh8 {[%clk 0:01:09]}  Rxh8 {[%clk 0:01:37]} 34. Rxg5 {[%clk 0:00:54]}  Rh6 {[%clk 0:01:37]} 35. Qe4 {[%clk 0:00:45]}  Bxd4 {[%clk 0:01:28]} 36. Rg1 {[%clk 0:00:43]}  Bc5 {[%clk 0:01:18]} 37. Qe5+ {[%clk 0:00:40]}  Kf8 {[%clk 0:00:58]} 38. Qg5 {[%clk 0:00:34]}  Kg7 {[%clk 0:00:52]} 39. d6 {[%clk 0:00:31]}  Bxd6 {[%clk 0:00:45]} 40. Qf5 {[%clk 0:00:28]}  Be5 {[%clk 0:00:29]} 41. Qf7+ {[%clk 0:00:28]}  Kh8 {[%clk 0:00:29]} 42. Qg8# {[%clk 0:00:28]} 1-0

[Event "January 9 Late 2024"]
[Site "https://www.chess.com"]
[Date "2024.01.09"]
[Round "4"]
[White "Balla, Tamas-Kristof"]
[Black "Svicevic, Rastko"]
[Result "0-1"]
[Board "212"]
[TimeControl "180+1"]
[WhiteFideId "1208497"]
[BlackFideId "916315"]
[WhiteElo "2436"]
[BlackElo "2213"]
[WhiteTeam "ROU"]
[BlackTeam "SRB"]
[WhiteClock "0:00:48"]
[BlackClock "0:00:05"]

1. e4 {[%clk 0:03:00]}  b6 {[%clk 0:02:51]} 2. d4 {[%clk 0:02:57]}  Bb7 {[%clk 0:02:52]} 3. Bd3 {[%clk 0:02:57]}  g6 {[%clk 0:02:52]} 4. Nc3 {[%clk 0:02:55]}  Bg7 {[%clk 0:02:53]} 5. Be3 {[%clk 0:02:50]}  h5 {[%clk 0:02:44]} 6. f4 {[%clk 0:02:46]}  Nf6 {[%clk 0:02:25]} 7. Nf3 {[%clk 0:02:43]}  d5 {[%clk 0:02:15]} 8. e5 {[%clk 0:02:38]}  Ng4 {[%clk 0:02:00]} 9. Qe2 {[%clk 0:02:32]}  Nxe3 {[%clk 0:01:59]} 10. Qxe3 {[%clk 0:02:32]}  e6 {[%clk 0:01:57]} 11. Ng5 {[%clk 0:02:26]}  Ba6 {[%clk 0:01:55]} 12. O-O {[%clk 0:02:22]}  Bxd3 {[%clk 0:01:50]} 13. Qxd3 {[%clk 0:02:22]}  O-O {[%clk 0:01:45]} 14. Nd1 {[%clk 0:02:19]}  c5 {[%clk 0:01:45]} 15. c3 {[%clk 0:02:19]}  Nc6 {[%clk 0:01:41]} 16. Ne3 {[%clk 0:02:18]}  cxd4 {[%clk 0:01:39]} 17. cxd4 {[%clk 0:02:18]}  Qe7 {[%clk 0:01:36]} 18. a3 {[%clk 0:02:07]}  Rac8 {[%clk 0:01:34]} 19. h4 {[%clk 0:02:06]}  Na5 {[%clk 0:01:34]} 20. f5 {[%clk 0:02:02]}  gxf5 {[%clk 0:01:28]} 21. Qe2 {[%clk 0:01:57]}  Bh6 {[%clk 0:01:28]} 22. Nxf5 {[%clk 0:01:48]}  exf5 {[%clk 0:01:25]} 23. Rxf5 {[%clk 0:01:48]}  Rc6 {[%clk 0:01:23]} 24. Qxh5 {[%clk 0:01:47]}  Bxg5 {[%clk 0:01:07]} 25. Rxg5+ {[%clk 0:01:47]}  Rg6 {[%clk 0:01:08]} 26. Rxg6+ {[%clk 0:01:48]}  fxg6 {[%clk 0:01:08]} 27. Qxg6+ {[%clk 0:01:48]}  Qg7 {[%clk 0:01:03]} 28. Qd6 {[%clk 0:01:40]}  Qf7 {[%clk 0:00:58]} 29. Kh1 {[%clk 0:01:34]}  Nc4 {[%clk 0:00:49]} 30. Qh6 {[%clk 0:01:17]}  Qg7 {[%clk 0:00:40]} 31. Qh5 {[%clk 0:01:10]}  Ne3 {[%clk 0:00:36]} 32. Rg1 {[%clk 0:01:06]}  Qg3 {[%clk 0:00:20]} 33. e6 {[%clk 0:01:00]}  Nxg2 {[%clk 0:00:15]} 34. Qf7+ {[%clk 0:00:52]}  Rxf7 {[%clk 0:00:15]} 35. exf7+ {[%clk 0:00:52]}  Kxf7 {[%clk 0:00:15]} 36. Rxg2 {[%clk 0:00:53]}  Qxh4+ {[%clk 0:00:15]} 37. Kg1 {[%clk 0:00:47]}  Qxd4+ {[%clk 0:00:16]} 38. Kf1 {[%clk 0:00:48]}  Qd3+ {[%clk 0:00:14]} 39. Ke1 {[%clk 0:00:48]}  Kf6 {[%clk 0:00:13]} 40. Rf2+ {[%clk 0:00:48]}  Ke5 {[%clk 0:00:13]} 41. Re2+ {[%clk 0:00:49]}  Kf4 {[%clk 0:00:11]} 42. Rd2 {[%clk 0:00:49]}  Qb1+ {[%clk 0:00:10]} 43. Ke2 {[%clk 0:00:49]}  Qe4+ {[%clk 0:00:11]} 44. Kd1 {[%clk 0:00:49]}  d4 {[%clk 0:00:11]} 45. b4 {[%clk 0:00:49]}  d3 {[%clk 0:00:11]} 46. a4 {[%clk 0:00:49]}  Ke3 {[%clk 0:00:11]} 47. Rh2 {[%clk 0:00:48]}  Qxb4 {[%clk 0:00:09]} 48. Rh3+ {[%clk 0:00:48]}  Kd4 {[%clk 0:00:07]} 49. Rh4+ {[%clk 0:00:49]}  Kc3 {[%clk 0:00:08]} 50. Rxb4 {[%clk 0:00:48]}  Kxb4 {[%clk 0:00:09]} 51. Kd2 {[%clk 0:00:48]}  Kc4 {[%clk 0:00:09]} 52. a5 {[%clk 0:00:48]}  bxa5 {[%clk 0:00:08]} 53. Kc1 {[%clk 0:00:49]}  a4 {[%clk 0:00:08]} 54. Kb2 {[%clk 0:00:49]}  a3+ {[%clk 0:00:06]} 55. Ka2 {[%clk 0:00:44]}  d2 {[%clk 0:00:06]} 56. Kxa3 {[%clk 0:00:45]}  d1=Q {[%clk 0:00:06]} 57. Kb2 {[%clk 0:00:46]}  Qd2+ {[%clk 0:00:06]} 58. Ka3 {[%clk 0:00:47]}  Qb4+ {[%clk 0:00:04]} 59. Ka2 {[%clk 0:00:47]}  Kc3 {[%clk 0:00:04]} 60. Ka1 {[%clk 0:00:48]}  Qb2# {[%clk 0:00:05]} 0-1